bitfinex/quotes_ETHUSD_20260130
["timestamp","ask_amount","ask_price","bid_price","bid_amount"]
[1769804707272,1.0,2706.5,2703.4,0.776]
[1769804707475,1.0,2706.5,2703.5,0.1024]
[1769804707676,0.19246786,2706.4,2703.6,6.5634866]
[1769804707881,1.19246786,2706.4,2702.9,10.0]
[1769804708045,1.0,2706.2,2703.1,0.1024]
[1769804708442,1.0,2706.2,2703.3,0.1024]
[1769804708666,1.0,2706.2,2703.0,0.92489826]
[1769804708878,1.0,2706.0,2703.0,0.92489826]
[1769804709064,1.0,2705.8,2703.0,0.92489826]
[1769804709389,1.0,2705.6,2703.0,0.92489826]
[1769804709689,1.0,2705.4,2702.4,0.92507541]
[1769804709851,1.0,2704.8,2702.2,3.70060928]
[1769804710186,1.0,2704.6,2702.1,0.92518823]
[1769804710393,1.0,2704.6,2701.5,3.70152097]
[1769804710691,1.0,2703.6,2701.2,0.92548797]
[1769804710986,1.0,2703.6,2701.5,3.701594]
[1769804711186,1.0,2703.6,2700.7,3.70263358]
[1769804711187,1.0,2703.6,2701.4,0.92544291]
[1769804711386,1.0,2703.6,2701.2,0.92550079]
[1769804711693,0.99945,2703.4,2700.7,3.70267751]
[1769804711985,0.99945,2703.2,2702.0,0.0011]
[1769804712175,0.99945,2703.2,2700.9,0.92561738]
[1769804712376,0.99945,2703.2,2700.9,0.0011]
[1769804713990,0.99945,2704.0,2701.3,0.92548032]
[1769804714291,0.99945,2703.8,2701.3,0.92548032]
[1769804715592,0.1923972,2703.9,2701.3,0.92548032]
[1769804715772,0.99945,2703.9,2701.4,0.775]
[1769804715972,0.9246246,2703.8,2701.5,0.9254118]
[1769804716193,0.99945,2703.9,2701.6,0.775]
[1769804716563,1.92404069,2703.9,2701.6,0.775]
[1769804716994,0.99945,2703.9,2701.6,0.775]
[1769804717179,1.92404349,2703.9,2701.5,0.9254118]
[1769804717359,0.56224051,2703.8,2701.6,1.2377059]
[1769804717560,0.99945,2703.7,2701.6,0.4627059]
[1769804717863,0.99945,2703.7,2701.5,0.9254118]
[1769804718091,0.99945,2703.5,2700.9,0.7761]
[1769804718301,0.92467276,2703.7,2701.0,6.6658866]
[1769804718601,0.99945,2703.6,2701.0,6.5634866]
[1769804718825,0.99945,2703.6,2701.1,0.775]
[1769804718962,0.19241228,2703.5,2701.2,0.1024]
[1769804719164,3.69752586,2704.6,2701.2,0.1024]
[1769804719165,0.99945,2705.1,2701.9,0.1024]
[1769804719393,0.99945,2705.1,2702.1,0.1024]
[1769804719722,0.7566573,2705.5,2702.7,0.3370703]
[1769804719878,0.19237705,2706.1,2703.7,0.1024]
[1769804720063,3.69394394,2707.2,2703.7,0.1024]
[1769804720064,0.19285334,2706.9,2704.1,0.1024]
[1769804720397,0.92356689,2706.9,2704.2,7.3384866]
[1769804720694,0.99995,2707.5,2704.4,0.1024]
[1769804720900,0.92364357,2706.7,2704.4,0.775]
[1769804721062,1.00095,2706.6,2704.4,0.775]
[1769804721263,1.00095,2706.6,2704.3,0.5]
[1769804721663,0.99995,2706.4,2704.3,0.5]
[1769804721893,0.97433391,2705.8,2703.4,3.69903861]
[1769804722078,0.97433391,2705.4,2702.5,3.70023232]
[1769804722282,0.97433391,2704.8,2702.4,0.92510361]
[1769804722503,0.97433391,2704.8,2702.3,3.70041444]
[1769804722504,0.97433391,2704.6,2702.3,0.92510926]
[1769804722675,0.97433391,2704.6,2700.9,7.0646866]
[1769804722676,0.97433391,2704.0,2701.9,0.92525791]
[1769804722999,0.97433391,2704.0,2701.0,3.70227142]
[1769804723200,0.97433391,2704.0,2702.2,0.92515659]
[1769804723377,0.97433391,2704.0,2701.9,3.70102658]
[1769804723574,0.97433391,2704.0,2702.0,0.925215]
[1769804723809,0.97433391,2704.0,2702.3,0.92513712]
[1769804724026,0.97433391,2703.8,2700.7,0.775]
[1769804724309,0.97433391,2703.8,2700.3,0.92582305]
[1769804724514,0.97433391,2703.8,2700.6,0.775]
[1769804724712,0.97433391,2703.8,2700.3,0.92582305]
[1769804724892,0.97433391,2703.8,2700.3,1.70082305]
[1769804725205,0.97433391,2703.8,2702.0,0.0011]
[1769804726127,1.89899271,2703.7,2700.5,0.92575448]
[1769804726424,0.97433391,2703.5,2700.6,1.24811724]
[1769804726591,0.97433391,2703.5,2700.6,0.47311724]
[1769804727404,0.97433391,2703.3,2700.6,0.47311724]
[1769804728122,0.92482983,2703.2,2700.7,0.92568593]
[1769804728303,0.55984831,2703.1,2700.8,0.47326539]
[1769804730194,0.55984831,2703.1,2700.9,0.92561738]
[1769804730390,0.97433391,2703.4,2700.9,0.92561738]
[1769804730823,0.9247272,2703.5,2700.9,0.92561738]
[1769804730824,0.97433391,2703.2,2700.9,0.92561738]
[1769804731436,0.97433391,2703.0,2700.9,0.92561738]
[1769804731893,0.97433391,2702.8,2700.8,0.92564736]
[1769804732096,0.97433391,2702.6,2700.0,0.92592592]
[1769804732315,0.97433391,2702.2,2700.0,0.92592592]
[1769804733834,0.97433391,2702.0,2699.9,4.57651787]
[1769804734007,0.97433391,2701.6,2699.9,3.65056957]
[1769804734208,0.97433391,2701.6,2699.6,0.92604487]
[1769804734209,1.89981423,2701.3,2699.6,0.92604487]
[1769804734616,0.97433391,2701.2,2699.2,3.70476256]
[1769804734830,0.18998142,2701.1,2699.7,0.92600599]
[1769804735215,1.16431533,2701.1,2698.2,3.70604441]
[1769804735445,0.97433391,2701.0,2698.6,3.70554595]
[1769804735594,0.97433391,2701.0,2699.0,0.92624032]
[1769804735796,0.97433391,2700.8,2698.7,3.70543941]
[1769804736028,0.97433391,2700.6,2698.7,0.37054394]
[1769804736329,0.92575448,2700.5,2697.9,0.92664665]
[1769804736529,1.11555018,2701.1,2699.5,0.0011]
[1769804736899,0.18998142,2701.1,2699.5,0.0011]
[1769804737097,0.9253433,2701.7,2699.5,0.0011]
[1769804737631,0.96794695,2701.6,2699.5,0.0011]
[1769804737950,0.98457799,2701.0,2699.5,0.0011]
[1769804738098,1.91019537,2700.9,2699.5,0.0011]
[1769804738300,0.98457799,2700.8,2699.5,0.0011]
[1769804738601,0.19101954,2700.7,2699.5,0.0011]
[1769804738801,1.17559753,2700.7,2699.5,0.0011]
[1769804739042,0.19101954,2700.7,2699.5,0.0011]
[1769804739202,0.92548032,2701.3,2699.5,0.0011]
[1769804739822,0.92524056,2702.0,2699.5,0.0011]
[1769804740137,0.92522031,2702.1,2699.6,0.92606312]
[1769804740939,0.92522031,2702.1,2699.6,7.48954972]
[1769804741302,1.9097983,2702.1,2699.6,0.92606312]
[1769804741506,0.56105018,2702.0,2699.7,0.46314156]
[1769804742238,0.56105018,2702.0,2699.8,0.92599451]
[1769804742439,3.69932408,2703.2,2699.9,0.6036]
[1769804742613,0.92486404,2703.1,2699.9,0.6036]
[1769804743636,0.9247272,2703.5,2700.6,0.6036]
[1769804744249,0.55976279,2703.6,2701.3,0.1024]
[1769804744544,0.92441946,2704.4,2701.5,0.6036]
[1769804744741,0.9243511,2704.6,2702.1,0.1024]
[1769804745101,3.69740442,2704.7,2702.1,0.1024]
[1769804745102,0.92434017,2704.7,2702.1,0.6036]
[1769804745500,0.98457799,2704.6,2701.4,0.5012]
[1769804745807,0.98457799,2704.6,2701.7,0.6036]
[1769804746002,0.19089182,2704.5,2701.9,0.6036]
[1769804746207,1.0,2706.9,2703.7,6.5634866]
[1769804746418,1.0,2706.3,2703.4,0.775]
[1769804746628,1.0,2706.3,2703.2,1.87449906]
[1769804746829,1.0,2706.3,2702.3,1.36553]
[1769804747019,1.1024,2705.7,2703.2,1.4159266]
[1769804747204,1.0,2705.4,2703.2,1.4159266]
[1769804747405,0.1024,2705.3,2703.2,1.4159266]
[1769804747610,1.0,2705.2,2703.2,1.4159266]
[1769804748212,0.92418025,2705.1,2703.3,0.92479562]
[1769804748546,1.0,2704.9,2703.3,0.92479562]
[1769804749109,1.92401249,2705.6,2703.3,0.92479562]
[1769804749332,1.0,2705.5,2703.3,0.92479562]
[1769804750008,0.92387287,2706.0,2703.3,0.92479562]
[1769804750205,0.92394116,2705.8,2703.3,0.92479562]
[1769804750442,1.0,2705.6,2703.4,0.48324107]
[1769804751808,0.776,2706.1,2703.4,0.48324107]
[1769804752007,0.001,2706.1,2703.5,0.3359703]
[1769804752245,0.001,2706.1,2704.0,0.92455621]
[1769804753347,1.001,2706.1,2704.0,0.92455621]
[1769804753846,1.001,2706.1,2703.9,0.92456735]
[1769804754253,1.0,2705.7,2703.2,1.4159266]
[1769804754549,1.0,2705.5,2703.5,0.9247272]
[1769804756326,1.92406818,2705.5,2703.4,3.69902053]
[1769804756753,0.92387287,2706.0,2703.4,3.69902053]
[1769804756936,1.0,2705.9,2703.4,3.69902053]
[1769804757136,1.19238729,2705.8,2703.4,3.69902053]
[1769804757343,3.9861469,2703.0,2699.5,1.86487745]
[1769804757542,3.9861469,2703.0,2699.7,0.9996]
[1769804757543,6.5634866,2702.7,2699.7,0.9996]
[1769804757746,6.5634866,2702.7,2699.5,0.0011]
[1769804757747,0.19312371,2700.2,2699.5,0.0011]
[1769804757969,0.9996,2699.7,2699.3,0.0006]
[1769804758261,0.19312371,2700.2,2698.2,1.0011]
[1769804758424,0.92589163,2700.1,2698.2,0.87796534]
[1769804758619,0.48225819,2700.0,2698.2,0.87796534]
[1769804759026,0.1024,2699.9,2697.1,0.93898267]
[1769804759227,0.1024,2699.7,2697.1,0.93898267]
[1769804759821,0.1024,2699.4,2697.1,0.93898267]
[1769804760557,0.1024,2699.2,2697.1,0.93898267]
[1769804760859,5.60216604,2699.3,2697.1,0.93898267]
[1769804760860,0.5704566,2699.1,2698.4,0.0011]
[1769804761032,0.92616604,2699.3,2698.4,0.0011]
[1769804761439,3.70395149,2699.9,2698.4,0.94008267]
[1769804761853,0.1024,2699.8,2697.2,0.91681541]
[1769804762265,0.775,2699.7,2697.2,0.91681541]
[1769804762470,0.92606312,2699.6,2697.2,0.92686894]
[1769804762631,0.46303156,2699.5,2697.3,0.91681541]
[1769804763064,0.92589163,2700.1,2697.7,0.91681541]
[1769804763364,0.92565165,2700.8,2697.7,0.91681541]
[1769804763527,0.92565165,2700.8,2698.1,0.91681541]
[1769804764037,0.92565165,2700.8,2698.3,0.91681541]
[1769804764434,0.775,2700.8,2698.4,0.91681541]
[1769804764630,0.1024,2700.7,2698.4,0.91681541]
[1769804765237,0.1024,2700.7,2698.5,0.91681541]
[1769804765641,0.1024,2700.5,2697.7,0.91681541]
[1769804765846,0.1024,2700.5,2697.8,0.91681541]
[1769804766036,4.33250948,2701.2,2698.4,0.91681541]
[1769804766230,1.68091161,2701.0,2698.4,0.91681541]
[1769804766455,0.1024,2700.8,2698.5,0.91681541]
[1769804766632,0.92561738,2700.9,2698.5,0.91681541]
[1769804767635,0.2335703,2700.8,2698.5,0.91681541]
[1769804767855,0.92561738,2700.9,2698.5,0.91681541]
[1769804768051,0.54315985,2700.8,2698.5,0.91681541]
[1769804768262,0.3359703,2700.7,2698.5,0.91681541]
[1769804768460,0.1024,2700.5,2698.5,0.91681541]
[1769804768667,0.2335703,2700.4,2698.5,0.91681541]
[1769804768900,0.92572021,2700.6,2698.6,0.91223245]
[1769804769466,1.4428963,2700.6,2698.6,0.91223245]
[1769804769787,0.51717609,2700.6,2698.6,0.91223245]
[1769804769988,3.70175738,2701.5,2698.6,0.91223245]
[1769804769989,0.92551458,2701.2,2698.6,0.91223245]
[1769804770300,0.1024,2701.1,2697.1,1.88426165]
[1769804770505,0.1024,2701.1,2691.3,0.0189112]
[1769804770506,0.19343669,2695.7,2692.5,0.56499997]
[1769804770802,0.19343669,2695.7,2689.2,15.76814982]
[1769804770803,0.92443019,2693.8,2690.1,0.9293255]
[1769804770957,8.720423,2693.6,2689.5,0.91223245]
[1769804771165,0.01116341,2692.4,2689.5,0.91223245]
[1769804771461,0.92443019,2691.7,2687.6,1.15523245]
[1769804771770,0.92443019,2690.7,2688.4,0.00558171]
[1769804771959,0.92443019,2690.5,2689.0,0.00558171]
[1769804772159,0.775,2690.7,2689.2,0.01116341]
[1769804772394,2.91117481,2690.6,2689.6,0.01116341]
[1769804772611,2.91117481,2690.6,2689.4,0.01116341]
[1769804772612,0.83033119,2690.5,2689.1,0.01116341]
[1769804772796,0.29111748,2690.5,2689.6,0.01116341]
[1769804772994,0.776,2690.7,2690.2,0.002442]
[1769804773300,0.92902266,2691.0,2690.6,0.00558171]
[1769804773598,0.92902266,2691.0,2690.1,0.01116341]
[1769804773999,0.92902266,2691.0,2690.2,0.01116341]
[1769804774206,1.70502266,2691.0,2690.4,0.01116341]
[1769804774412,1.47117881,2690.9,2690.7,0.01116341]
[1769804774592,0.92906748,2690.9,2690.8,0.00139543]
[1769804774908,0.92906748,2690.9,2690.0,0.01116341]
[1769804775222,1.70506748,2690.9,2689.7,0.01116341]
[1769804775432,0.92906748,2690.9,2687.9,0.01116341]
[1769804775716,3.032468,2690.7,2688.8,0.01116341]
[1769804775862,0.88553736,2690.7,2688.2,0.01116341]
[1769804776068,0.88553736,2690.7,2686.7,0.92339586]
[1769804776069,0.88553736,2690.7,2688.7,0.01487293]
[1769804776414,0.92919531,2690.5,2689.0,0.00582381]
[1769804776589,0.92919531,2690.5,2688.6,0.00394332]
[1769804776590,0.46459766,2690.4,2688.6,0.00394332]
[1769804776791,0.46459766,2690.4,2689.1,0.01487293]
[1769804776981,0.46459766,2690.4,2689.3,0.01394337]
[1769804777176,0.46459766,2690.4,2689.0,0.01002927]
[1769804777383,0.46459766,2690.4,2688.6,0.00743647]
[1769804777690,0.46459766,2690.4,2688.9,0.00087147]
[1769804777894,0.46459766,2690.4,2686.3,3.72259075]
[1769804777895,4.27823331,2690.3,2688.1,0.01487293]
[1769804778082,4.27823331,2690.3,2685.8,0.01116341]
[1769804778083,6.59291855,2688.8,2685.8,0.85062346]
[1769804778279,2.195446,2688.6,2688.2,5.42020777]
[1769804778480,7.838315,2688.4,2686.3,0.01487293]
[1769804778700,0.8615315,2688.3,2686.7,0.0132462]
[1769804778999,0.92985196,2688.6,2686.7,0.00082789]
[1769804779200,0.92985196,2688.6,2687.1,0.01487293]
[1769804779398,0.92985196,2688.6,2687.5,0.01487293]
[1769804779580,0.777,2688.5,2688.0,0.01301381]
[1769804779791,0.777,2688.5,2687.5,0.01487293]
[1769804779990,0.92985196,2688.6,2687.5,0.00092956]
[1769804780193,0.92960993,2689.3,2688.9,0.00389541]
[1769804780396,0.92967907,2689.1,2689.0,0.01487293]
[1769804780693,4.49418825,2690.3,2687.5,0.89040271]
[1769804780927,4.25339823,2690.7,2687.5,0.89040271]
[1769804780928,0.01487293,2692.5,2690.0,1.0]
[1769804781086,0.777,2692.1,2689.6,0.01857873]
[1769804781284,6.61149728,2692.0,2689.5,0.00928937]
[1769804781504,0.01857873,2691.4,2687.4,0.01857873]
[1769804781785,0.01857873,2691.7,2687.8,0.91223245]
[1769804781786,0.01857873,2690.8,2687.8,0.91223245]
[1769804782009,0.1024,2690.5,2687.8,0.91223245]
[1769804782319,0.01857873,2691.1,2688.3,0.02231064]
[1769804782320,0.1024,2690.3,2688.3,0.02231064]
[1769804782520,0.92929893,2690.2,2687.8,0.91223245]
[1769804782820,0.2335703,2689.6,2686.9,0.91223245]
[1769804783030,0.2335703,2689.6,2687.2,0.02231064]
[1769804783187,0.3359703,2689.4,2687.0,0.02231064]
[1769804783509,0.2335703,2689.2,2687.0,0.00053058]
[1769804784017,2.0024,2689.4,2687.4,0.02231064]
[1769804784224,0.001,2688.8,2687.4,0.02231064]
[1769804784586,0.001,2688.8,2687.4,0.00053058]
[1769804784781,0.001,2688.8,2687.6,0.02231064]
[1769804785015,0.001,2688.8,2687.3,0.02231064]
[1769804785216,0.001,2688.8,2687.0,0.00053058]
[1769804785924,0.001,2688.8,2687.2,0.02231064]
[1769804786220,0.001,2688.8,2687.6,0.02604167]
[1769804786426,0.2335703,2688.7,2686.5,0.02604167]
[1769804786596,0.2335703,2688.5,2686.3,0.0131597]
[1769804786796,0.2335703,2688.3,2686.3,0.00328993]
[1769804786995,0.2335703,2688.3,2686.1,0.00109686]
[1769804787196,0.2335703,2688.3,2686.2,0.00935893]
[1769804787599,0.778,2688.2,2686.7,0.02604167]
[1769804787796,0.2335703,2688.1,2686.7,0.01302084]
[1769804788004,0.778,2688.0,2686.7,0.01302084]
[1769804788231,0.778,2688.0,2686.8,0.02604167]
[1769804788394,0.93012872,2687.8,2686.4,0.02604167]
[1769804788593,1.24306436,2687.7,2686.6,0.0131597]
[1769804788816,1.24306436,2687.7,2686.5,0.02604167]
[1769804789094,0.93012872,2687.8,2687.1,0.02604167]
[1769804789401,0.93012872,2687.8,2687.0,0.00528327]
[1769804789597,0.92995573,2688.3,2687.5,0.00651042]
[1769804789799,0.92995573,2688.3,2686.9,0.01189284]
[1769804790119,0.2335703,2688.2,2686.6,0.02604167]
[1769804790324,0.48832414,2688.2,2687.0,0.02604167]
[1769804790630,0.93002492,2688.1,2687.4,0.00325521]
[1769804790816,0.93002492,2688.1,2687.5,0.00345361]
[1769804790998,0.93002492,2688.1,2687.5,0.00086341]
[1769804791193,0.93002492,2688.1,2687.4,0.02095888]
[1769804791518,0.93002492,2688.1,2687.4,0.00130993]
[1769804791720,3.72009969,2688.2,2687.4,0.00130993]
[1769804791934,0.93002492,2688.1,2687.4,0.00130993]
[1769804792135,0.93002492,2688.1,2686.6,0.90222238]
[1769804792305,0.93002492,2688.1,2687.3,0.00130993]
[1769804792508,3.72009969,2688.2,2687.4,0.01488179]
[1769804792831,3.72009969,2688.2,2687.6,0.00093012]
[1769804793000,3.71655104,2690.7,2688.6,0.02976357]
[1769804793192,0.779,2690.6,2688.4,0.03347654]
[1769804793441,0.63625999,2690.5,2688.7,0.00104615]
[1769804793621,0.63625999,2690.5,2688.2,0.03347654]
[1769804793936,0.779,2690.4,2688.9,0.01821744]
[1769804794107,0.63625999,2690.5,2689.2,0.03347654]
[1769804794306,0.779,2690.4,2689.2,0.01673827]
[1769804794507,0.779,2690.3,2689.2,0.00104615]
[1769804794706,0.779,2690.3,2689.0,0.00209229]
[1769804795049,0.2335703,2690.1,2688.8,0.0288349]
[1769804795199,0.1024,2690.2,2689.1,0.00836914]
[1769804795554,0.779,2690.3,2689.2,0.00836914]
[1769804795555,0.1024,2690.3,2689.2,0.00836914]
[1769804795699,0.779,2690.1,2689.2,0.00104615]
[1769804795901,0.779,2690.1,2688.7,0.00121477]
[1769804796094,0.2335703,2690.0,2688.1,0.03102697]
[1769804796393,0.2335703,2690.0,2687.6,0.96476436]
[1769804796394,0.001,2688.8,2688.5,0.00232425]
[1769804796597,0.001,2688.8,2687.6,0.03457654]
[1769804796797,0.92940258,2689.9,2688.7,0.03718785]
[1769804797017,0.92940258,2689.9,2689.3,0.00823106]
[1769804797232,0.92940258,2689.9,2689.3,0.00127822]
[1769804797549,0.92940258,2689.9,2688.8,0.00224501]
[1769804797702,0.92940258,2689.9,2689.0,0.02045142]
[1769804797902,0.92940258,2689.9,2688.9,0.02045142]
[1769804798141,4.49661032,2690.0,2688.8,0.02837708]
[1769804798308,1.70456011,2689.9,2689.6,0.00604224]
[1769804798511,0.92947168,2689.7,2689.2,0.02416896]
[1769804798709,0.77515753,2689.6,2689.4,0.04833792]
[1769804798901,0.92947168,2689.7,2689.2,0.00151056]
[1769804799102,0.92947168,2689.7,2689.4,0.04616208]
[1769804799299,1.76598724,2689.7,2689.2,0.04833792]
[1769804799511,1.76598724,2689.7,2688.9,0.0118125]
[1769804799805,3.24718821,2689.6,2688.9,0.00147657]
[1769804800237,3.24718821,2689.6,2687.9,0.97115577]
[1769804800238,6.49437642,2689.2,2688.6,0.05205912]
[1769804800453,0.92967907,2689.1,2687.9,0.79087719]
[1769804800600,0.34538205,2688.4,2687.9,1.3]
[1769804800806,4.54606349,2688.8,2687.9,1.3]
[1769804801043,4.54606349,2688.8,2687.9,1.52301567]
[1769804801419,0.92967907,2689.1,2687.9,1.3]
[1769804801836,0.92967907,2689.1,2687.9,1.25]
[1769804802210,0.92966191,2689.2,2687.9,1.2]
[1769804802407,1.0,2689.1,2687.6,0.0011]
[1769804802601,0.92971364,2689.0,2687.6,0.0011]
[1769804802912,2.76645592,2689.0,2687.6,0.0011]
[1769804803112,1.0,2688.9,2685.6,3.72348064]
[1769804803345,1.0,2688.9,2685.7,0.0796449]
[1769804803503,0.2335703,2688.8,2685.7,0.0796449]
[1769804803713,1.0,2688.8,2685.6,3.72348064]
[1769804803936,1.0,2688.8,2685.7,0.37234806]
[1769804804145,1.0,2688.7,2685.7,0.37234806]
[1769804804453,1.0,2688.7,2685.2,3.72384002]
[1769804804454,1.2335703,2688.4,2685.2,3.72384002]
[1769804804753,1.0,2687.9,2685.1,0.93104082]
[1769804804906,1.0,2687.5,2685.1,0.93104082]
[1769804805106,1.0,2687.5,2685.1,0.88104082]
[1769804805343,1.0,2687.5,2685.2,0.4605422]
[1769804805512,1.0,2687.4,2685.0,0.93108479]
[1769804805705,1.0,2687.4,2684.5,3.72497967]
[1769804805706,0.2335703,2687.1,2683.9,3.72582283]
[1769804805947,1.0,2687.0,2684.3,3.72534082]
[1769804806143,1.0,2687.0,2685.1,0.93106383]
[1769804806311,1.0,2687.0,2685.0,0.93109181]
[1769804806508,1.0,2687.0,2684.4,3.72512725]
[1769804806509,0.93044028,2686.9,2684.0,0.1024]
[1769804806849,3.72150984,2687.1,2684.4,0.1024]
[1769804807007,3.7210228,2687.5,2684.4,0.1024]
[1769804807437,1.0,2687.2,2684.1,0.38282228]
[1769804807647,1.0,2686.5,2683.8,0.93151501]
[1769804807951,0.2335703,2686.6,2683.6,3.72631707]
[1769804807952,1.0,2685.9,2683.6,3.72631707]
[1769804808115,1.0,2685.9,2685.2,0.0011]
[1769804808308,1.0,2685.9,2682.9,3.72723665]
[1769804808309,1.0,2685.7,2680.8,1.8387877]
[1769804808509,1.0,2683.4,2681.8,1.0]
[1769804808706,1.19423674,2682.5,2681.4,0.01963858]
[1769804808912,0.19423674,2682.5,2679.5,1.81232154]
[1769804809238,0.19423674,2682.5,2678.2,0.18613252]
[1769804809239,0.19423674,2682.5,2680.9,3.73002887]
[1769804809535,0.19423674,2682.5,2681.0,0.37300289]
[1769804809717,0.19423674,2682.5,2681.5,0.93230654]
[1769804810113,0.19423674,2682.5,2679.9,1.83366181]
[1769804810314,0.19423674,2682.5,2681.4,0.93231414]
[1769804810538,0.19423674,2682.5,2680.5,0.93266181]
[1769804810741,0.93127211,2684.5,2681.7,6.59291855]
[1769804810903,0.02822562,2684.4,2681.8,0.76169186]
[1769804811110,0.93105917,2685.2,2682.7,0.1024]
[1769804811305,0.02822562,2685.2,2682.7,0.1024]
[1769804811545,0.02822562,2685.1,2682.7,0.1024]
[1769804811713,0.95917332,2685.5,2682.7,0.1024]
[1769804811919,0.95916777,2685.5,2682.7,0.1024]
[1769804812117,1.0,2685.4,2682.4,0.1024]
[1769804812440,0.19591521,2685.3,2682.4,0.1024]
[1769804812647,0.93102934,2685.2,2682.5,0.93196644]
[1769804812939,1.0,2684.9,2682.5,0.93196644]
[1769804813120,1.0,2684.7,2682.5,0.93196644]
[1769804813317,1.0,2684.5,2682.5,0.93196644]
[1769804813527,1.0,2684.5,2682.6,0.46598322]
[1769804813728,0.02822562,2684.4,2682.6,0.46598322]
[1769804814540,0.9313415,2684.3,2682.6,0.46598322]
[1769804814738,1.9313415,2684.3,2682.2,3.72826827]
[1769804814944,0.02822562,2684.2,2682.6,0.93191799]
[1769804815164,0.02822562,2684.2,2682.6,0.93193078]
[1769804815349,1.2335703,2684.0,2680.6,10.0]
[1769804815526,1.0,2684.0,2681.0,1.86396511]
[1769804815724,1.0,2683.8,2681.4,3.72934384]
[1769804815950,1.0,2683.8,2681.2,4.50961133]
[1769804816254,0.02822562,2683.7,2682.5,0.93195523]
[1769804816417,0.02822562,2684.1,2682.6,0.93193105]
[1769804816750,0.02822562,2684.3,2682.8,0.93186223]
[1769804817049,4.72426276,2685.1,2682.8,0.93186223]
[1769804817050,1.95930456,2685.1,2682.8,0.93186223]
[1769804817258,0.02822562,2685.0,2682.8,0.93186223]
[1769804817460,1.0,2685.8,2682.9,0.78]
[1769804817622,0.02822562,2685.7,2682.9,0.78]
[1769804817823,1.02822562,2685.7,2682.9,0.78]
[1769804818131,1.02822562,2685.6,2682.9,0.78]
[1769804818331,1.0,2685.6,2682.9,0.78]
[1769804818527,1.02822562,2685.5,2682.9,0.78]
[1769804818727,1.0,2685.3,2683.0,0.93179276]
[1769804818933,1.0,2685.3,2683.1,0.46589638]
[1769804819158,0.02822562,2685.2,2683.1,0.46589638]
[1769804820025,1.1024,2686.8,2683.1,0.46589638]
[1769804820223,1.0,2687.9,2684.9,6.59291855]
[1769804820472,1.0,2687.7,2683.4,0.19391681]
[1769804820626,0.99780983,2687.3,2683.9,0.1024]
[1769804820820,0.001,2685.5,2683.8,0.93151501]
[1769804821036,0.001,2685.5,2683.7,0.93152726]
[1769804821235,0.99880983,2685.5,2683.7,0.93154937]
[1769804821472,0.99880983,2685.5,2683.6,3.7261989]
[1769804821473,0.99880983,2685.5,2683.1,0.46589638]
[1769804821679,0.99780983,2685.3,2682.1,0.78]
[1769804821982,0.99780983,2685.3,2683.4,0.93165196]
[1769804822163,0.99780983,2685.3,2683.4,0.93163577]
[1769804822363,0.99780983,2685.3,2683.0,3.72707554]
[1769804822694,0.001,2685.5,2683.3,3.7261989]
[1769804822983,0.001,2685.5,2683.0,0.93179276]
[1769804823139,0.001,2685.5,2683.1,0.46589638]
[1769804823346,0.001,2685.5,2683.2,0.1024]
[1769804823542,0.001,2685.5,2683.3,0.78]
[1769804823848,0.99880983,2685.5,2683.1,0.46589638]
[1769804824588,0.93096,2685.4,2683.2,0.93172331]
[1769804824772,0.99780983,2685.2,2683.3,0.51245129]
[1769804825090,0.99408983,2685.2,2683.3,0.51245129]
[1769804826884,0.93106401,2685.1,2683.4,0.93165387]
[1769804827085,1.92513986,2685.2,2683.4,0.93165387]
[1769804827292,0.93194778,2685.5,2683.4,0.93165387]
[1769804827590,0.98446309,2685.4,2683.5,0.51707206]
[1769804829190,0.98446309,2685.4,2683.6,0.93158443]
[1769804829755,3.72291205,2686.1,2683.6,0.93158443]
[1769804829756,0.98446309,2686.2,2683.6,0.93158443]
[1769804829992,1.91516407,2686.2,2683.6,0.93158443]
[1769804830286,6.63330459,2687.4,2684.4,0.1024]
[1769804830452,0.66333046,2687.3,2684.6,0.1024]
[1769804830652,0.98446309,2687.4,2684.6,0.1024]
[1769804831063,0.98446309,2687.4,2684.7,0.93120274]
[1769804831064,0.93030178,2687.3,2684.7,0.93120274]
[1769804831263,0.98446309,2687.2,2684.7,0.93120274]
[1769804831464,0.98446309,2687.2,2684.7,1.71120274]
[1769804831668,0.98446309,2686.8,2684.7,1.71120274]
[1769804831957,0.98446309,2686.8,2684.7,1.38943031]
[1769804833192,0.001,2685.2,2684.8,0.93116805]
[1769804833792,0.98446309,2686.8,2684.8,0.93116805]
[1769804833950,1.91493891,2686.8,2684.8,0.93116805]
[1769804834154,3.72119392,2687.4,2684.8,0.93116805]
[1769804834369,1.54805551,2687.3,2684.9,0.52652706]
[1769804835204,0.9303364,2687.2,2685.0,0.93109869]
[1769804835693,0.98446309,2687.1,2685.0,0.93109869]
[1769804837426,0.98446309,2687.8,2685.1,0.1024]
[1769804837629,1.91437194,2688.5,2686.1,0.1024]
[1769804837787,0.98446309,2688.5,2686.2,0.78]
[1769804838238,0.98446309,2689.1,2686.3,0.1024]
[1769804838587,0.98446309,2689.1,2685.3,0.1024]
[1769804838791,0.98446309,2688.9,2685.5,0.1024]
[1769804839225,1.91423007,2688.9,2686.1,0.1024]
[1769804839388,0.5633223,2688.8,2686.3,0.1024]
[1769804839592,0.98446309,2688.9,2686.3,0.1024]
[1769804840101,0.98446309,2688.8,2686.3,0.1024]
[1769804840312,0.98446309,2688.8,2686.4,0.78]
[1769804840490,0.98446309,2688.8,2686.9,6.48049355]
[1769804840695,0.98446309,2689.3,2686.4,0.78]
[1769804841031,0.98446309,2689.3,2686.5,0.78]
[1769804841190,0.98446309,2688.9,2686.3,0.9306481]
[1769804843411,0.98446309,2688.9,2686.4,0.1024]
[1769804843593,0.98446309,2688.8,2686.4,0.1024]
[1769804843795,0.98446309,2688.7,2686.4,0.1024]
[1769804844111,0.98446309,2688.7,2686.5,0.779]
[1769804844685,0.98446309,2688.7,2686.3,0.9306481]
[1769804845521,0.98446309,2688.7,2686.3,7.41114165]
[1769804845823,0.98446309,2688.7,2686.4,0.1024]
[1769804846042,0.98446309,2689.4,2686.6,0.1024]
[1769804846185,0.98446309,2689.3,2686.6,0.1024]
[1769804846691,0.98446309,2689.3,2686.5,0.75135417]
[1769804846919,0.92958871,2689.4,2686.3,0.9306481]
[1769804846920,0.001,2688.6,2686.4,0.1024]
[1769804847320,0.93085196,2688.6,2686.5,0.93057882]
[1769804847626,0.98446309,2688.5,2686.5,0.93057882]
[1769804849342,0.92992114,2688.4,2686.4,3.72231528]